[Event "Chinese Championship-B Men 2024"]
[Site "Liaocheng"]
[Date "2024.04.26"]
[Round "11.2"]
[White "Zhang, Di"]
[Black "Wu, Yixing"]
[Result "1/2-1/2"]
[ECO "D41"]
[WhiteElo "2303"]
[BlackElo "2348"]
[Annotator "TA"]
[PlyCount "60"]
[EventDate "2024.04.24"]
[EventType "swiss"]
[EventCountry "CHN"]
[SourceTitle "playchess.com"]
[Source "ChessBase"]
[SourceQuality "1"]
[TimeControl "5400+30"]

{[%evp 11,60,35,33,27,35,23,35,23,24,30,31,26,22,25,27,20,43,39,42,22,31,47,35,27,29,35,34,35,35,33,36,28,39,15,42,14,20,24,51,51,51,51,51,51,51,51,37,20,37,7,8]} 1. d4 {[%emt 0:00:07]} Nf6 {[%emt 0:00:09]} 2. c4 {[%emt 0:00:17]} e6 {[%emt 0:00:14]} 3. Nf3 {[%emt 0:00:47]} d5 {[%emt 0:00:27]} 4. Nc3 {[%emt 0:00:09]} c5 {[%emt 0:00:24]} 5. cxd5 {[%emt 0:04:13]} cxd4 {[%emt 0:00:20]} 6. Qxd4 {[%emt 0:02:53]} exd5 {[%emt 0:00:32]} 7. e4 {[%emt 0:00:28]} dxe4 {[%emt 0:00:34]} 8. Qxd8+ {[%emt 0:00:20]} Kxd8 {[%emt 0:00:07]} 9. Ng5 {[%emt 0:00:09][%csl LRe4,LRf7] White is slightly better.} Be6 {[%emt 0:00:31]} 10. Nxe6+ {[%emt 0:05:02]} fxe6 {[%emt 0:00:08]} 11. Bg5 {[%emt 0:00:57]} Nc6 {[%emt 0:03:02]} 12. Bc4 {[%emt 0:04:13]} Ke7 {[%emt 0:02:30]} 13. Nxe4 {[%emt 0:01:26]} Kf7 {[%emt 0:01:49]} 14. Bxf6 {[%emt 0:06:19]} gxf6 {[%emt 0:00:15]} 15. O-O-O {[%emt 0:00:10]} Rd8 {[%emt 0:04:06]} ({Reject} 15... Ne5 $6 16. Bb3 $16) 16. Rxd8 {[%emt 0:04:51]} Nxd8 {[%emt 0:00:11]} 17. Rd1 {[%emt 0:00:05]} Be7 {[%emt 0:04:03]} 18. Rd7 {[%emt 0:02:42] [#] Strongly threatening Nd6+.} f5 {[%emt 0:07:29]} 19. Nd6+ {[%emt 0:00:45]} Kf6 {[%emt 0:00:24]} 20. Nxb7 {[%emt 0:00:11]} Nxb7 {[%emt 0:00:55]} 21. Rxb7 $14 {[%emt 0:00:04][%mdl 4096] Endgame. KRB-KRB} Bc5 {[%emt 0:00:56]} 22. f4 {[%emt 0:02:24]} Rg8 {[%emt 0:03:37]} 23. Rxh7 {[%emt 0:02:11]} Rxg2 {[%emt 0:04:23]} 24. Rh6+ {[%emt 0:00:10]} Rg6 {[%emt 0:00:13]} 25. Rxg6+ {[%emt 0:00:07]} Kxg6 {[%emt 0:00:06]} 26. Bxe6 {[%emt 0:00:14] KB-KB} Be3+ {[%emt 0:00:29]} 27. Kc2 {[%emt 0:00:05]} Bxf4 {[%emt 0:00:12]} 28. h3 {[%emt 0:00:06]} Bd6 {[%emt 0:00:37]} 29. a3 {[%emt 0:00:11]} a5 {[%emt 0:00:16]} 30. Kb3 {[%emt 0:00:18]} Bc7 {[%emt 0:00:48] Weighted Error Value: White=0.05 (flawless) /Black=0.06 (flawless) .  Inaccurate:     	White=2     	Black=2      OK:         	White=13    	Black=9      Best:        	White=2     	Black=1} 1/2-1/2

[Event "Chinese Championship-B Men 2024"]
[Site "Liaocheng"]
[Date "2024.04.26"]
[Round "11.3"]
[White "Meng, Yihan"]
[Black "Xie, Kaifan"]
[Result "1-0"]
[ECO "B12"]
[WhiteElo "2042"]
[BlackElo "2393"]
[Annotator "TA"]
[PlyCount "67"]
[EventDate "2024.04.24"]
[EventType "swiss"]
[EventCountry "CHN"]
[SourceTitle "playchess.com"]
[Source "ChessBase"]
[SourceQuality "1"]
[TimeControl "5400+30"]

{[%evp 9,67,-3,3,4,17,11,4,5,5,-2,0,1,1,-4,0,-1,0,0,0,15,0,0,0,0,10,-3,41,35,108,51,215,207,365,356,470,466,533,517,530,532,549,565,589,582,572,460,501,528,634,465,532,489,441,508,522,530,507,505,6327,6278]} 1. e4 {[%emt 0:00:03]} c6 {[%emt 0:00:05]} 2. d4 {[%emt 0:00:04]} d5 {[%emt 0:00:06]} 3. e5 {[%emt 0:00:03]} Bf5 {[%emt 0:00:09]} 4. h4 {[%emt 0:00:06]} h5 {[%emt 0:00:15]} 5. Bd3 {[%emt 0:00:12]} Bxd3 {[%emt 0:00:08]} 6. Qxd3 {[%emt 0:00:05][%cal Oe5e6]} Qa5+ {[%emt 0:00:03]} 7. c3 {[%emt 0:00:06][%cal Oe5e6] Strongly threatening e6!} Qa6 {[%emt 0:00:39]} 8. Qf3 {[%emt 0:00:25][%cal Oe5e6] next e6! is good for White. The position is equal.} e6 {[%emt 0:00:24]} 9. b4 {[%emt 0:00:06]} Qa4 {[%emt 0:01:39]} 10. Ne2 {[%emt 0:00:36]} a5 {[%emt 0:02:39]} 11. bxa5 {[%emt 0:00:06]} Nd7 {[%emt 0:00:13]} 12. Nd2 {[%emt 0:02:38]} Rxa5 {[%emt 0:00:39]} 13. O-O {[%emt 0:00:54][%cal Oc3c4]} Ne7 {[%emt 0:02:13]} 14. c4 {[%emt 0:02:13]} Nf5 {[%emt 0:19:14]} 15. Nb3 {[%emt 0:11:02]} Ra8 {[%emt 0:03:02]} ({Much worse is} 15... Nxh4 $6 16. Qh3 Be7 17. Nc3 $18) 16. cxd5 {[%emt 0:01:10]} cxd5 {[%emt 0:00:12]} 17. Bg5 {[%emt 0:01:32]} Ba3 {[%emt 0:07:29] Dodges Rac1} 18. Rad1 {[%emt 0:02:53]} Qc6 {[%emt 0:08:10] [#]} ({Better is} 18... g6 $14) 19. Rd3 {[%emt 0:08:39]} ({White should play} 19. Ng3 $1 $16) 19... Bb2 $2 {[%emt 0:05:03] [#] A mistake that costs the game.} ({Black should try} 19... Be7 $14) 20. Ng3 $1 $18 {[%emt 0:12:02]} g6 {[%emt 0:02:01]} ({But not} 20... Nxg3 21. fxg3 O-O 22. Be7 $18 (22. Qxh5 Qc4 $16)) (20... Ne7 {keeps fighting.} 21. Rb1 (21. Nxh5 Nf5 $18) 21... Qc2) 21. Nxf5 {[%emt 0:00:18]} exf5 {[%emt 0:00:41]} 22. Rb1 {[%emt 0:03:42] White is clearly winning.} Qc2 {[%emt 0:05:35]} 23. Re1 {[%emt 0:02:01]} Qc6 {[%emt 0:02:38] [#]} 24. e6 $1 {[%emt 0:02:32][%mdl 512]} fxe6 {[%emt 0:00:11] [#]} (24... Nf8 25. Re2) 25. Rxe6+ $3 {[%emt 0:13:38][%mdl 512]} Qxe6 {[%emt 0:00:05]} 26. Re3 {[%emt 0:00:02]} Qe4 {[%emt 0:02:11]} 27. Nd2 {[%emt 0:14:36]} Bxd4 {[%emt 0:00:56][%cal Oe8g8]} 28. Nxe4 {[%emt 0:00:18]} dxe4 {[%emt 0:00:16] [#]} 29. Rxe4+ $1 {[%emt 0:04:02][%mdl 512]} fxe4 {[%emt 0:00:23]} 30. Qxe4+ {[%emt 0:00:03]} Kf8 {[%emt 0:01:20]} 31. Qxd4 {[%emt 0:02:22]} Rh7 {[%emt 0:00:03]} 32. Qd6+ {[%emt 0:00:26]} Kg8 {[%emt 0:00:08]} 33. Qxg6+ {[%emt 0:00:04]} Kh8 {[%emt 0:00:19]} (33... Rg7 $142 34. Qxh5 Rxa2) 34. Be3 {[%emt 0:00:50] Weighted Error Value: White=0.13 (very precise) /Black=0.36.  Loses game:     	---       	Black=1      Mistake:       	White=1     	Black=3      Inaccurate:     	---       	Black=2      OK:         	White=14    	Black=10     Best:        	White=3     	Black=2} 1-0

[Event "Chinese Championship-B Men 2024"]
[Site "Liaocheng"]
[Date "2024.04.26"]
[Round "11.4"]
[White "Liu, Bei"]
[Black "Chen, Zimu(Js)"]
[Result "1/2-1/2"]
[ECO "D85"]
[WhiteElo "1964"]
[BlackElo "2075"]
[Annotator "TA"]
[PlyCount "103"]
[EventDate "2024.04.24"]
[EventType "swiss"]
[EventCountry "CHN"]
[SourceTitle "playchess.com"]
[Source "ChessBase"]
[SourceQuality "1"]
[TimeControl "5400+30"]

{[%evp 28,103,0,0,31,5,55,51,59,51,59,59,66,64,84,68,73,73,59,61,65,60,68,62,85,58,42,42,33,8,6,7,10,0,0,0,0,-13,0,-3,-3,-3,-3,-3,0,0,0,0,0,0,0,0,0,0,0,8,7,0,0,0,0,0,0,0,0,0,0,0,0,0,0,0,0,0,0,0,0,0]} 1. d4 {[%emt 0:00:03]} Nf6 {[%emt 0:00:06]} 2. c4 {[%emt 0:00:10]} g6 {[%emt 0:00:12]} 3. Nc3 {[%emt 0:00:29]} d5 {[%emt 0:00:06]} 4. cxd5 {[%emt 0:02:03]} Nxd5 {[%emt 0:00:06]} 5. e4 {[%emt 0:00:03]} Nxc3 {[%emt 0:00:05]} 6. bxc3 {[%emt 0:00:04]} Bg7 {[%emt 0:00:04]} 7. Nf3 {[%emt 0:00:09]} c5 {[%emt 0:00:06]} 8. Be3 {[%emt 0:00:04]} Qa5 {[%emt 0:01:20]} 9. Qd2 {[%emt 0:00:27]} Nc6 {[%emt 0:01:14]} 10. Rc1 {[%emt 0:01:32]} cxd4 {[%emt 0:00:06]} 11. cxd4 {[%emt 0:00:02]} Qxd2+ {[%emt 0:00:07]} 12. Kxd2 {[%emt 0:00:04]} O-O {[%emt 0:00:08]} 13. d5 {[%emt 0:00:17]} Rd8 {[%emt 0:00:47]} 14. Ke1 {[%emt 0:00:15]} Na5 {[%emt 0:02:41]} 15. Bg5 {[%emt 0:00:39]} Kf8 {[%emt 0:13:21]} 16. Bd3 {[%emt 0:06:15]} f6 {[%emt 0:06:31]} (16... b6 $11) 17. Bf4 {[%emt 0:08:22][%cal Bg5f4,Bf4d2,Bd2b4][%mdl 32]} e5 {[%emt 0:01:00] White is slightly better.} 18. Bd2 {[%emt 0:00:24]} b6 {[%emt 0:00:04]} 19. Bb4+ {[%emt 0:04:19]} Ke8 {[%emt 0:03:51]} 20. Rc7 {[%emt 0:06:21]} Bd7 {[%emt 0:00:30]} 21. Ba6 {[%emt 0:00:17] Against Rac8. White has more active pieces. The black rooks are passive.} Bf8 {[%emt 0:02:21]} 22. Bxf8 {[%emt 0:00:20]} Kxf8 {[%emt 0:00:05]} 23. Ke2 {[%emt 0:07:04]} Ke7 {[%emt 0:00:20]} 24. Rhc1 {[%emt 0:03:38]} Kd6 {[%emt 0:00:10]} 25. Nd2 {[%emt 0:02:02]} b5 {[%emt 0:12:39]} 26. R7c3 {[%emt 0:05:41]} Rdb8 {[%emt 0:00:36]} 27. Ra3 {[%emt 0:00:25]} Nb7 {[%emt 0:00:05]} 28. Bxb7 {[%emt 0:08:45]} Rxb7 {[%emt 0:00:04] The position is equal.} 29. Ra6+ {[%emt 0:01:39]} Rb6 {[%emt 0:00:55]} 30. Rxb6+ {[%emt 0:00:19]} axb6 $11 {[%emt 0:00:05][%mdl 4096] Endgame. KRB-KRN} 31. Rc2 {[%emt 0:00:03]} f5 {[%emt 0:01:46]} 32. f3 {[%emt 0:00:26]} f4 {[%emt 0:02:46]} 33. g3 {[%emt 0:07:30]} g5 {[%emt 0:04:04]} 34. g4 {[%emt 0:03:52] [#]} h5 $1 {[%emt 0:01:46]} 35. h3 {[%emt 0:00:04]} Rh8 {[%emt 0:05:40]} 36. a3 {[%emt 0:05:24]} Ra8 {[%emt 0:07:34]} 37. Rc3 {[%emt 0:00:17]} Ra4 {[%emt 0:02:52]} 38. Rb3 {[%emt 0:01:18]} h4 {[%emt 0:02:28]} 39. Kd3 {[%emt 0:07:06]} Kc7 {[%emt 0:02:15]} 40. Nb1 {[%emt 0:04:18]} Rd4+ {[%emt 0:00:29]} 41. Ke2 {[%emt 0:00:18]} Kd6 {[%emt 0:01:20]} 42. Nd2 {[%emt 0:00:27]} Ra4 {[%emt 0:02:13]} 43. Kd3 {[%emt 0:00:09]} Bc8 {[%emt 0:01:45]} 44. Kc2 {[%emt 0:02:03]} Ba6 {[%emt 0:06:00]} 45. Kb2 {[%emt 0:00:46]} Rd4 {[%emt 0:00:18]} 46. Kc2 {[%emt 0:00:09]} Ra4 {[%emt 0:03:26]} 47. Kb2 {[%emt 0:00:16]} Rd4 {[%emt 0:02:13]} 48. Kc2 {[%emt 0:00:25]} b4 {[%emt 0:02:02] Prevents Rc3.} 49. Rxb4 {[%emt 0:01:45]} Rxb4 {[%emt 0:02:28]} 50. axb4 {[%emt 0:00:00]} Be2 {[%emt 0:00:07]} 51. Kc3 {[%emt 0:01:48] [#] Black must now prevent Nc4+.} Kc7 {[%emt 0:01:12]} 52. Kc2 {[%emt 0:04:28] Weighted Error Value: White=0.04 (flawless) /Black=0.04 (flawless) .  Mistake:       	---       	Black=1      Inaccurate:     	White=2     	---        OK:         	White=17    	Black=17     Best:        	White=1     	Black=1} 1/2-1/2

[Event "Chinese Championship-B Men 2024"]
[Site "Liaocheng"]
[Date "2024.04.26"]
[Round "11.5"]
[White "Wang, Zihang"]
[Black "Jiang, Haochen"]
[Result "0-1"]
[ECO "C54"]
[WhiteElo "1846"]
[BlackElo "2381"]
[Annotator "TA"]
[PlyCount "62"]
[EventDate "2024.04.24"]
[EventType "swiss"]
[EventCountry "CHN"]
[SourceTitle "playchess.com"]
[Source "ChessBase"]
[SourceQuality "1"]
[TimeControl "5400+30"]

{[%evp 12,62,17,10,29,9,11,11,18,20,14,6,12,8,11,0,0,-18,-16,-18,-18,-14,0,-19,9,-249,-264,-266,-272,-280,-287,-278,-286,-294,-294,-283,-297,-294,-298,-289,-273,-309,-304,-306,-283,-430,-430,-433,-418,-455,-453,-422,-422]} 1. e4 {[%emt 0:00:06]} e5 {[%emt 0:00:32]} 2. Nf3 {[%emt 0:00:17]} Nc6 {[%emt 0:00:17]} 3. Bc4 {[%emt 0:01:07]} Bc5 {[%emt 0:00:40]} 4. c3 {[%emt 0:00:51]} Nf6 {[%emt 0:00:08]} 5. d3 {[%emt 0:00:47]} O-O {[%emt 0:02:31]} 6. O-O {[%emt 0:00:14]} d6 {[%emt 0:00:30]} 7. Re1 {[%emt 0:01:38]} Re8 {[%emt 0:03:25]} 8. a4 {[%emt 0:05:38] Black must now prevent b4.} (8. b4 $5 Bb6 $8 9. a4 $11) 8... a5 {[%emt 0:00:36]} 9. h3 {[%emt 0:03:12]} Be6 {[%emt 0:02:54] The position is equal.} 10. Bb5 {[%emt 0:20:36]} Bd7 {[%emt 0:15:01]} 11. Nbd2 {[%emt 0:10:11]} Ne7 {[%emt 0:15:43]} 12. Bxd7 {[%emt 0:10:13]} Qxd7 {[%emt 0:00:35]} 13. Nf1 {[%emt 0:00:36]} Ng6 {[%emt 0:16:39]} 14. Ng3 {[%emt 0:05:17]} d5 {[%emt 0:03:26]} 15. Bg5 {[%emt 0:19:51]} dxe4 {[%emt 0:08:26]} 16. dxe4 {[%emt 0:01:52]} Qc6 {[%emt 0:08:37]} 17. Qb3 {[%emt 0:06:27]} Nf4 {[%emt 0:10:07] [#]} 18. Nxe5 $2 {[%emt 0:03:43][%mdl 8192] This costs White the game.} Nxh3+ $19 {[%emt 0:01:16]} 19. gxh3 {[%emt 0:00:07]} Rxe5 {[%emt 0:00:13]} 20. Bf4 {[%emt 0:01:48] [#]} Nxe4 $1 {[%emt 0:06:56]} 21. Bxe5 {[%emt 0:02:26]} Bxf2+ {[%emt 0:00:02]} 22. Kh2 {[%emt 0:00:09]} Nd2 {[%emt 0:01:00] ( -> ...Nf3+)} 23. Qb5 {[%emt 0:00:50] [#]} Nf3+ $1 {[%emt 0:01:39]} (23... Bxe1 24. Qxc6 bxc6 25. Bxc7 $17) 24. Kh1 {[%emt 0:00:29] Qxc6 is the strong threat.} ({Avoid the trap} 24. Kg2 $2 Nh4+ (24... Bxe1 $2 25. Qxc6 Nh4+ 26. Kf1 $18) (24... Nxe1+ 25. Kxf2 Qxb5 26. axb5 $19) 25. Kf1 Qf3 $19 (25... Bxe1 $2 26. Qxc6 bxc6 27. Rxe1 $18) (25... Qg2+ $2 26. Ke2 $19) (25... Bxe1 $2 26. Qxc6 bxc6 27. Rxe1 $18) (25... Qg2+ $2 26. Ke2 $19)) 24... Nxe5+ {[%emt 0:00:21]} ({Not} 24... Bxe1 25. Qxc6 bxc6 26. Bxc7 $17) 25. Qxc6 {[%emt 0:00:12]} Nxc6 {[%emt 0:00:03]} 26. Nf5 {[%emt 0:02:55]} Bxe1 {[%emt 0:00:05]} 27. Rxe1 {[%emt 0:00:03]} Kf8 {[%emt 0:00:09] Prevents Ne7.} 28. Nd4 {[%emt 0:00:47]} (28. Ne3 $142) 28... Nxd4 {[%emt 0:00:17]} 29. cxd4 {[%emt 0:00:04]} Rd8 {[%emt 0:00:03]} 30. Rc1 {[%emt 0:00:08]} Rxd4 {[%emt 0:00:14]} 31. Rxc7 {[%emt 0:00:04]} Rb4 {[%emt 0:00:12] Weighted Error Value: White=0.34/Black=0.02 (flawless) .  Loses game:     	White=1     	---        Mistake:       	White=1     	---        Inaccurate:     	---       	Black=1      OK:         	White=4     	Black=13     Best:        	White=3     	Black=3      Strong:       	---       	Black=2} (31... Rxa4 32. Rxb7 Rb4 33. Ra7 $19) 0-1

[Event "Chinese Championship-B Men 2024"]
[Site "Liaocheng"]
[Date "2024.04.26"]
[Round "11.6"]
[White "Xi, Qi"]
[Black "Cheng, Zihan"]
[Result "1-0"]
[ECO "E15"]
[WhiteElo "2217"]
[BlackElo "1819"]
[Annotator "TA"]
[PlyCount "67"]
[EventDate "2024.04.24"]
[EventType "swiss"]
[EventCountry "CHN"]
[SourceTitle "playchess.com"]
[Source "ChessBase"]
[SourceQuality "1"]
[TimeControl "5400+30"]

{[%evp 16,67,16,0,19,29,27,14,22,24,114,28,62,17,14,16,99,87,72,78,153,158,174,157,167,133,139,129,185,172,205,184,201,211,301,283,267,275,283,287,418,415,420,399,700,682,932,932,893,884,5708,5810,3006,2166]} 1. d4 {[%emt 0:00:23]} Nf6 {[%emt 0:00:04]} 2. c4 {[%emt 0:00:07]} e6 {[%emt 0:00:03]} 3. Nf3 {[%emt 0:00:09]} b6 {[%emt 0:00:12]} 4. g3 {[%emt 0:00:29]} Ba6 {[%emt 0:00:12]} 5. b3 {[%emt 0:00:20]} Bb4+ {[%emt 0:00:05]} 6. Bd2 {[%emt 0:00:05]} Be7 {[%emt 0:00:04]} 7. Bg2 {[%emt 0:00:08]} c6 {[%emt 0:00:12]} 8. O-O {[%emt 0:01:21]} d5 {[%emt 0:00:05]} 9. Ne5 {[%emt 0:01:00]} O-O {[%emt 0:00:58]} 10. Bc3 {[%emt 0:01:18]} Nfd7 {[%emt 0:03:48]} 11. Nxd7 {[%emt 0:13:52]} Qxd7 {[%emt 0:02:30] The position is equal.} 12. Nd2 {[%emt 0:01:32][%cal Bb1d2,Bd2f3,Bf3e5][%mdl 32]} c5 {[%emt 0:01:02] [#]} (12... Bb7 $11) 13. cxd5 {[%emt 0:04:07]} (13. dxc5 $1 $16 Bxc5 14. Ne4) 13... exd5 {[%emt 0:00:18]} 14. Nf3 {[%emt 0:05:14]} (14. dxc5 $5 Bxc5 15. Nc4 $16) 14... Nc6 {[%emt 0:00:21]} 15. Qd2 {[%emt 0:00:30]} c4 {[%emt 0:15:42]} (15... Rac8 $11) 16. Ne5 $16 {[%emt 0:06:33] Black is on the road to losing.} Nxe5 {[%emt 0:09:46]} 17. dxe5 {[%emt 0:00:03]} Rfd8 {[%emt 0:01:25]} (17... cxb3 $142 18. Bxd5 (18. axb3 Bb7 $16) 18... Rad8 19. axb3 Qb5 (19... Bxe2 20. Bxf7+ Kxf7 21. Qxe2 $16)) 18. Rfd1 {[%emt 0:01:16]} cxb3 {[%emt 0:13:03]} 19. Bxd5 {[%emt 0:18:25]} (19. axb3 Bb7 $16) 19... Qb5 {[%emt 0:03:15]} (19... Qg4 20. axb3 $11) 20. e4 {[%emt 0:02:18] Qf4 would now be deadly.} (20. axb3 Bb7 21. e4 Bc6) 20... Bb7 {[%emt 0:07:34]} 21. axb3 {[%emt 0:00:26][%cal Ba2b3,Bb3b4][%mdl 32]} Bf8 {[%emt 0:04:04]} (21... a5 $16 22. Qd3 Qe8) 22. b4 $18 {[%emt 0:02:00]} a6 {[%emt 0:09:48]} 23. Qd3 {[%emt 0:01:27] aiming for Qxb5.} Qxd3 {[%emt 0:04:28]} 24. Rxd3 {[%emt 0:00:02]} Rac8 {[%emt 0:01:21]} (24... Be7 {might work better.} 25. Bxb7 Rxd3 26. Bxa8 Rxc3 27. Rxa6 Bxb4) 25. Rad1 {[%emt 0:05:45]} ({Weaker is} 25. Bxb7 Rxd3 26. Bxc8 Rxc3 $16) 25... Bxd5 {[%emt 0:01:24]} 26. exd5 {[%emt 0:00:02]} Rc4 {[%emt 0:00:31]} 27. d6 {[%emt 0:00:34]} g5 {[%emt 0:02:09] [#]} (27... Rc6 $142 28. f4 h5) 28. f4 $1 {[%emt 0:03:16][%mdl 512]} gxf4 {[%emt 0:03:41]} 29. gxf4 {[%emt 0:00:02][%cal Bg3f4,Bf4f5,Bf5e6][%mdl 32]} Bh6 $2 {[%emt 0:00:07]} (29... h5 30. f5 h4) 30. f5 {[%emt 0:01:04] White is clearly winning.} Bf4 {[%emt 0:02:49]} 31. e6 {[%emt 0:14:11]} fxe6 {[%emt 0:01:24]} 32. fxe6 {[%emt 0:00:03] Black must now prevent e7.} Rxd6 {[%emt 0:03:41]} 33. Rxd6 {[%emt 0:00:22]} Bxd6 {[%emt 0:00:02]} 34. Rxd6 {[%emt 0:00:12] Weighted Error Value: White=0.15 (very precise) /Black=0.53.  Mistake:       	White=1     	Black=7      Inaccurate:     	White=1     	Black=2      OK:         	White=7     	Black=5      Best:        	White=3     	Black=1} 1-0

[Event "Chinese Championship-B Men 2024"]
[Site "Liaocheng"]
[Date "2024.04.26"]
[Round "11.7"]
[White "Gong, Changda"]
[Black "Jin, Ruijun"]
[Result "1/2-1/2"]
[ECO "A13"]
[WhiteElo "2170"]
[BlackElo "1819"]
[Annotator "TA"]
[PlyCount "76"]
[EventDate "2024.04.24"]
[EventType "swiss"]
[EventCountry "CHN"]
[SourceTitle "playchess.com"]
[Source "ChessBase"]
[SourceQuality "1"]
[TimeControl "5400+30"]

{[%evp 9,76,3,17,7,4,4,18,20,5,7,27,4,57,48,58,49,53,43,56,43,73,80,69,61,124,34,37,42,76,52,61,0,0,0,135,79,79,73,68,69,47,16,54,64,49,44,86,93,83,89,80,86,95,18,25,21,28,29,23,15,11,2,2,2,2,0,0,0,0]} 1. c4 {[%emt 0:03:46]} e6 {[%emt 0:00:10]} 2. g3 {[%emt 0:00:04]} d5 {[%emt 0:00:07]} 3. Bg2 {[%emt 0:00:21]} Nf6 {[%emt 0:00:07]} 4. Nf3 {[%emt 0:00:03]} d4 {[%emt 0:00:08]} 5. d3 {[%emt 0:01:04]} Bb4+ {[%emt 0:00:14]} 6. Bd2 {[%emt 0:02:12]} a5 {[%emt 0:00:06]} 7. O-O {[%emt 0:00:30]} Nc6 {[%emt 0:00:07]} 8. e3 {[%emt 0:05:49]} O-O {[%emt 0:00:21]} 9. Na3 {[%emt 0:02:11]} e5 {[%emt 0:10:20]} 10. exd4 {[%emt 0:10:56]} Bxa3 {[%emt 0:02:47]} (10... Nxd4 $11 11. Bxb4 axb4) 11. bxa3 $14 {[%emt 0:08:42]} exd4 {[%emt 0:05:02]} 12. Rb1 {[%emt 0:02:25]} h6 {[%emt 0:11:54]} 13. Re1 {[%emt 0:02:42]} Ra7 {[%emt 0:05:37]} 14. Qc2 {[%emt 0:04:18]} Be6 {[%emt 0:03:56]} 15. Rb5 {[%emt 0:01:34]} b6 {[%emt 0:03:30]} 16. c5 {[%emt 0:03:53]} Qd7 {[%emt 0:09:28] [#]} ({Black should play} 16... Bd7 $1 $14) 17. cxb6 {[%emt 0:05:25]} (17. Qc1 $1 $16) 17... cxb6 {[%emt 0:00:20]} 18. Rxb6 {[%emt 0:00:43]} Rc8 {[%emt 0:02:02]} 19. Rc1 {[%emt 0:05:44][%cal Rb6c6]} (19. Qb1 $5) 19... Rac7 {[%emt 0:07:52][%cal Oc6e5] ...Ne5! would now be deadly.} 20. Qb2 {[%emt 0:04:32]} (20. Qd1 $14) 20... Nd5 $11 {[%emt 0:10:00]} 21. Rb5 {[%emt 0:01:27][%cal Ob5c5]} (21. Nxd4 $2 Nxd4 (21... Nxb6 22. Nxe6 Qxe6 23. Qxb6 $15) 22. Rxc7 Nxc7 $19) 21... a4 {[%emt 0:02:38]} (21... Nc3 $1 $11 {remains equal.} 22. Bxc3 Nb4 23. Bxb4 (23. Rxa5 $2 Nxd3 24. Qb5 Qxb5 $19) 23... Rxc1+ 24. Be1 R1c2 (24... R8c2 25. Rb8+ Kh7 26. Qb5 $11)) 22. Rbc5 {[%emt 0:02:20] White is much more active.} (22. Nxd4 $2 Nxd4 23. Rxc7 Nxc7 $19) (22. h4 $142) 22... Qd6 $16 {[%emt 0:04:15][%cal Od5c3]} 23. R5c2 $36 {[%emt 0:13:07][%mdl 2048] White is on the roll.} (23. Nxd4 $2 Nxd4 24. Rxc7 Nxc7 $19) 23... Rb8 {[%emt 0:05:09]} 24. Qa1 {[%emt 0:02:33]} Rbc8 {[%emt 0:01:42]} 25. Rc5 {[%emt 0:04:56][%cal Oh2h4]} (25. Nxd4 $2 {is the wrong capture.} Nxd4 26. Rxc7 Nxc7 $19) 25... Nc3 {[%emt 0:04:59]} 26. R5xc3 {[%emt 0:00:25]} dxc3 {[%emt 0:00:05]} 27. Bf4 {[%emt 0:00:02] This pair of bishops is nice.} Qxd3 {[%emt 0:01:13]} 28. Bxc7 {[%emt 0:01:26]} Rxc7 {[%emt 0:00:10]} 29. Qxc3 {[%emt 0:04:22]} Qxc3 {[%emt 0:02:30]} 30. Rxc3 {[%emt 0:00:01] [#] Ne5 is the strong threat.} Rc8 {[%emt 0:00:11][%cal Og8f8]} 31. Ne1 {[%emt 0:01:15]} ({Better is} 31. Bf1 $16) 31... Ne7 {[%emt 0:01:43]} 32. Rxc8+ {[%emt 0:00:04]} Nxc8 $11 {[%emt 0:00:04][%mdl 4096] Endgame. KBN-KBN} 33. Nd3 {[%emt 0:04:37]} Bxa2 {[%emt 0:00:28]} 34. Bc6 {[%emt 0:00:44]} Nb6 {[%emt 0:00:04] The position is equal.} 35. Nc5 {[%emt 0:00:10]} Bb3 {[%emt 0:00:46]} ({But not} 35... Nc4 $6 36. Bd5 $16 (36. Bxa4 Nxa3 37. f4 Bd5 $11)) 36. Kf1 {[%emt 0:02:18]} Nc4 {[%emt 0:00:26]} 37. Bxa4 {[%emt 0:01:27]} Bxa4 {[%emt 0:00:05]} 38. Nxa4 {[%emt 0:00:01]} Nxa3 {[%emt 0:08:54] Weighted Error Value: White=0.15 (very precise) /Black=0.21 (precise) .  Mistake:       	White=4     	Black=3      Inaccurate:     	White=1     	Black=4      OK:         	White=11    	Black=9      Best:        	---       	Black=4} 1/2-1/2